[Event "Israel National League 2024"]
[Site "Israel"]
[Date "2024.02.16"]
[Round "7.16"]
[White "Karp, Ilya"]
[Black "Ben-Menachem, Itzhak"]
[Result "1-0"]
[ECO "C67"]
[WhiteElo "2382"]
[BlackElo "2266"]
[Annotator "TA"]
[PlyCount "97"]
[EventDate "2024.01.07"]
[EventType "team-tourn"]
[EventCountry "ISR"]
[SourceTitle "playchess.com"]
[Source "ChessBase"]
[SourceQuality "1"]
[TimeControl "40/5400+30:1800+30"]

{[%evp 9,97,28,37,-24,0,-15,-6,-7,0,0,0,-9,0,0,0,0,-5,-18,-22,-50,23,30,24,26,40,0,0,0,0,0,0,0,0,0,0,0,0,0,0,0,0,0,0,0,150,113,102,90,110,30,32,24,16,16,15,0,0,0,66,30,76,47,62,0,74,83,82,88,87,52,39,67,40,35,136,53,233,225,483,265,470,254,414,258,29969,29956,5297,531,29988,29989]} 1. e4 {[%emt 0:00:03]} e5 {[%emt 0:00:01]} 2. Nf3 {[%emt 0:00:13]} Nc6 {[%emt 0:00:09]} 3. Bb5 {[%emt 0:00:06]} Nf6 {[%emt 0:00:06]} 4. O-O {[%emt 0:00:20]} Nxe4 {[%emt 0:00:08]} 5. d4 {[%emt 0:00:04]} Nd6 {[%emt 0:00:20]} 6. Ba4 {[%emt 0:00:04]} (6. Bxc6 $14 dxc6 7. dxe5) 6... e4 {[%emt 0:03:33]} 7. Re1 {[%emt 0:00:37]} Be7 {[%emt 0:02:31]} 8. Ne5 {[%emt 0:00:07] Die Stellung ist ausgeglichen.} O-O {[%emt 1:27:42]} 9. Nc3 {[%emt 1:33:26]} f5 {[%emt 0:00:00]} 10. Bf4 {[%emt 0:00:00]} Nxe5 {[%emt 0:00:00]} 11. dxe5 {[%emt 0:00:00]} Nf7 {[%emt 0:00:00]} 12. Bb3 {[%emt 0:00:00]} Kh8 {[%emt 0:00:00]} 13. Qh5 {[%emt 0:00:00]} g6 {[%emt 0:00:00]} (13... Qe8 {mit weiteren Verwicklungen.} 14. Nb5 Bd8 15. Rad1 a6) 14. Qe2 {[%emt 0:00:00]} Bg5 {[%emt 0:00:00]} (14... g5 $15 15. Bd2 Nxe5) 15. Bxg5 $11 {[%emt 0:00:00]} Nxg5 {[%emt 0:00:00] Schwarz hat schwache schwarze Felder} 16. Rad1 {[%emt 0:00:00]} c6 {[%emt 0:00:00]} 17. Qd2 {[%emt 0:00:00]} Qe7 {[%emt 0:00:00]} 18. h4 {[%emt 0:00:00]} Nf7 {[%emt 0:00:00]} 19. Bxf7 {[%emt 0:00:00]} Rxf7 {[%emt 0:00:00]} 20. Qf4 {[%emt 0:00:00]} b6 {[%emt 0:00:00]} 21. Rd6 {[%emt 0:00:00]} Ba6 $1 {[%emt 0:00:00]} 22. Red1 {[%emt 0:00:00]} Re8 $1 {[%emt 0:00:00]} 23. Rxd7 {[%emt 0:00:00]} Qxd7 {[%emt 0:00:00]} 24. Rxd7 {[%emt 0:00:00]} Rxd7 {[%emt 0:00:00]} 25. h5 {[%emt 0:00:00][%cal Bh4h5,Bh5h6][%mdl 32]} Kg7 {[%emt 0:04:50]} 26. g4 {[%emt 0:01:44] Schwarz muss nun h6+ beachten.} Rf7 {[%emt 0:01:28]} (26... Kg8 $11) 27. h6+ $1 $16 {[%emt 0:02:29]} Kg8 {[%emt 0:00:01] [#]} 28. e6 $1 {[%emt 0:00:47][%mdl 512]} Rfe7 {[%emt 0:00:53]} (28... Rxe6 $2 29. Qb8+ Rf8 30. Qc7 $18 (30. Qxa7 Rf7 $18)) 29. gxf5 {[%emt 0:01:40]} (29. Qd6 $1 $16) 29... gxf5 $11 {[%emt 0:00:02]} 30. Qg5+ {[%emt 0:01:30]} Kh8 {[%emt 0:00:43]} 31. Qf6+ {[%emt 0:00:50][%mdl 1024] Weiss hat Kompensation.} Kg8 {[%emt 0:00:02]} 32. Qg5+ {[%emt 0:00:53]} Kh8 {[%emt 0:00:02] Droht stark ...Rg8.} 33. Qf6+ {[%emt 0:00:02]} ({Günstiger ist} 33. Qxf5 $11 Rxe6 34. Nxe4 Rxh6 (34... Rxe4 35. Qf6+ Kg8 36. Qg7#) 35. Qf7 Rg8+ 36. Ng3) 33... Kg8 $14 {[%emt 0:00:15]} 34. b3 $1 {[%emt 0:00:39]} (34. Qxf5 Rxe6 35. Nxe4 Rxe4 $11) 34... Bc8 {[%emt 0:00:51]} 35. Qg5+ {[%emt 0:00:59]} (35. Qxf5 Rxe6 36. Qf4 Rf8 $17) 35... Kh8 {[%emt 0:00:00]} 36. Qf6+ {[%emt 0:00:20]} Kg8 {[%emt 0:00:01]} 37. Ne2 $1 {[%emt 0:00:37] Manche mögen's heiß. Weiß steht aktiver.} (37. Qxf5 Rxe6 38. Qf4 Rf8 $17) 37... Bxe6 {[%emt 0:00:43]} 38. Nf4 $36 {[%emt 0:00:41][%mdl 2048] Nxe6 ist eine echte Drohung. Schwarz steht unter starkem Druck.} Bd7 {[%emt 0:02:56]} 39. Nh5 {[%emt 0:00:50] Zielt auf Ng7 ab.} Rf7 {[%emt 0:01:12]} 40. Qg5+ {[%emt 0:00:45]} Kh8 {[%emt 0:01:02] ...Rg8 wäre nun fies.} 41. Kf1 {[%emt 0:08:30]} (41. Nf6 $6 Ref8 $18) (41. Qe3 {ist vielschichtiger.} Re6 42. Qf4 Kg8 43. Qb8+) 41... c5 {[%emt 0:06:00]} (41... Rg8 $2 42. Qf4 Rgf8 43. Ke2 $18) ({Besser ist} 41... Ref8 $14) 42. c4 {[%emt 0:04:41]} (42. Qf4 $16) 42... Ref8 $2 {[%emt 0:07:05] [#] Danach kann Schwarz die Partie nicht mehr halten.} (42... Rg8 $2 43. Qf4 Re8 44. Qd6 $18) (42... Re6 $1 $14 43. Ke2 (43. Qd8+ Re8 $18) 43... Re8) 43. Qf4 $1 $18 {[%emt 0:02:18]} Bc8 $2 {[%emt 0:01:32]} (43... e3 {war einen Versuch wert.} 44. fxe3 Re8) 44. a4 {[%emt 0:04:22]} (44. Qe5+ $142 Kg8 45. Qf4) 44... Re8 $2 {[%emt 0:04:08] [#]} (44... Bb7 {ist eine bessere Verteidigung.} 45. a5 (45. Qe5+ Kg8 $18) 45... bxa5) 45. a5 {[%emt 0:02:42]} bxa5 $2 {[%emt 0:01:39]} (45... e3 {ist wohl besser.} 46. fxe3 Kg8 47. Qg3+ Kh8) 46. Qe3 {[%emt 0:02:43]} Re5 $2 {[%emt 0:05:41]} (46... Ref8 $18 47. Qxc5 a4 48. Qe5+ (48. bxa4 f4 $18) 48... Kg8 49. bxa4 f4) 47. Qc3 {[%emt 0:00:17][%csl LRa5,LRe5]} Rfe7 {[%emt 0:00:01]} 48. Qxa5 {[%emt 0:00:19]} (48. Nf6 $142 R5e6 49. Qd2 (49. Nxe4+ Kg8 $18)) 48... Rd7 {[%emt 0:00:38]} 49. Nf6 {[%emt 0:00:26] Gewichteter Fehlerwert: Weiß=0.37/Schwarz=0.67.  Verlustzug:     	---       	Schwarz=1     Fehler:       	Weiß=5     	Schwarz=7     Ungenau:       	Weiß=3     	---        OK:         	Weiß=19    	Schwarz=11    Bester:       	Weiß=2     	Schwarz=10    Stark:        	Weiß=3     	Schwarz=2} 1-0

[Event "Israel National League 2024"]
[Site "Israel"]
[Date "2024.02.16"]
[Round "7.17"]
[White "Lavi, Idan"]
[Black "Mordechai, Hanan"]
[Result "0-1"]
[ECO "D40"]
[WhiteElo "2118"]
[BlackElo "2347"]
[Annotator "TA"]
[PlyCount "68"]
[EventDate "2024.01.07"]
[EventType "team-tourn"]
[EventCountry "ISR"]
[SourceTitle "playchess.com"]
[Source "ChessBase"]
[SourceQuality "1"]
[TimeControl "40/5400+30:1800+30"]

{[%evp 18,68,-19,-16,-9,-21,-20,-24,0,0,25,-26,36,0,0,-10,0,-2,4,7,19,10,56,58,45,45,50,44,58,54,57,41,56,39,91,73,98,68,116,113,115,97,108,114,184,204,742,-1345,-1395,-1293,-1252,-29993,-29992]} 1. e4 {[%emt 0:00:04]} c6 {[%emt 0:01:06]} 2. d4 {[%emt 0:00:13]} d5 {[%emt 0:00:04]} 3. exd5 {[%emt 0:00:16]} cxd5 {[%emt 0:00:06]} 4. c4 {[%emt 0:00:18]} Nf6 {[%emt 0:00:36]} 5. Nc3 {[%emt 0:00:17]} Nc6 {[%emt 0:02:24]} 6. Nf3 {[%emt 0:00:14]} e6 {[%emt 0:02:25]} 7. Bg5 {[%emt 0:07:01]} Be7 {[%emt 0:00:57]} 8. Be2 {[%emt 0:00:49]} dxc4 {[%emt 0:03:11]} 9. Bxc4 {[%emt 0:01:13]} O-O {[%emt 0:00:21]} 10. O-O {[%emt 0:00:25]} h6 {[%emt 0:10:11]} 11. Be3 {[%emt 0:05:20]} b6 {[%emt 0:06:10][%cal Bb7b6,Bb6b5,Bb5b4][%mdl 32]} 12. Qe2 {[%emt 0:02:17]} Nb4 {[%emt 0:07:48] Black has an edge.} 13. Ne5 {[%emt 0:04:26]} Bb7 {[%emt 0:02:28]} 14. Rad1 {[%emt 0:02:44]} (14. f4 $142) 14... a6 {[%emt 0:04:54]} (14... Nbd5 $11) 15. Rfe1 {[%emt 0:02:58]} (15. f4 $14 {might be stronger.}) 15... b5 $11 {[%emt 0:05:04]} 16. Bb3 {[%emt 0:01:09]} Nbd5 {[%emt 0:01:57]} 17. Bc1 {[%emt 0:14:57]} b4 {[%emt 0:09:16]} 18. Nxd5 Nxd5 19. Qe4 {[%emt 0:07:27]} (19. Bc2 {with more complications.} Rc8 20. Qd3 Nf6 21. Bb1) 19... f5 {[%emt 0:08:16]} (19... Rc8 $11 {is more appropriate.}) 20. Qe2 $14 {[%emt 0:06:52][%cal Oe5c6] [#] aiming for Nc6!} Rf6 {[%emt 0:00:44]} 21. Nd3 {[%emt 0:15:10]} Bd6 {[%emt 0:05:40]} 22. Nc5 {[%emt 0:02:26]} Bxc5 {[%emt 0:00:15]} 23. dxc5 {[%emt 0:00:03]} Qc7 {[%emt 0:08:18]} 24. Be3 $1 {[%emt 0:03:02][%cal Bc1e3,Be3d4,Bd4e5][%mdl 32]} Rg6 {[%emt 0:00:26]} 25. f3 $1 {[%emt 0:02:13]} Rf8 {[%emt 0:02:09]} ({Better is} 25... Kh7 $14) 26. Rd2 {[%emt 0:03:15]} Rc8 {[%emt 0:03:31]} 27. Bd4 {[%emt 0:01:58]} Qf4 {[%emt 0:00:40]} (27... Qe7 $14 {should be considered.}) 28. Be5 $16 {[%emt 0:03:50]} Qg5 {[%emt 0:00:14]} 29. Rc2 {[%emt 0:02:31]} Kh7 {[%emt 0:02:08]} 30. Bd6 {[%emt 0:08:49] A strong pair of Bishops.} (30. Qf2 {simplifies} Qe7 31. Bd6 Qf7 32. h4) 30... Bc6 {[%emt 0:06:55]} (30... a5 $16) 31. Qxa6 $18 {[%emt 0:00:45]} Ne3 $2 {[%emt 0:00:09]} (31... Nf4 32. Qf1 (32. Qxc8 $2 Nxg2 $19) (32. Bxf4 Qxf4 33. Rf2 Rc7 $16) 32... Rd8) 32. Qxc8 $4 {[%emt 0:02:24][%mdl 8192]} ({Worse is} 32. f4 Qxg2+ 33. Rxg2 Rxg2+ 34. Kh1 Ng4 $11 (34... Rxb2+ $2 {too greedy.} 35. Qxc6 Rxc6 36. Rxe3 $18) (34... Rxb2+ $2 {perishes.} 35. Qxc6 Rxc6 36. Rxe3 $18)) (32. h4 $18 Qxh4 33. Rxe3) 32... Nxc2 $19 {[%emt 0:00:17][%csl Gg6][%cal Rg5g2] [#]} 33. Bg3 {[%emt 0:00:58]} Nxe1 {[%emt 0:01:01]} 34. Bxe6 {[%emt 0:00:25]} Qe3+ {[%emt 0:00:35] Weighted Error Value: White=0.52/Black=0.22 (precise) .  Missed win:     	White=1     	---        Mistake:       	White=2     	Black=6      Inaccurate:     	White=1     	---        OK:         	White=7     	Black=9      Best:        	White=1     	---        Strong:       	White=2     	---} 0-1

[Event "Israel National League 2024"]
[Site "Israel"]
[Date "2024.02.16"]
[Round "7.18"]
[White "Uritsky, Yonathan"]
[Black "Erenberg, Shlomy"]
[Result "1-0"]
[ECO "A14"]
[WhiteElo "2097"]
[BlackElo "2103"]
[Annotator "NA RC"]
[PlyCount "137"]
[EventDate "2024.01.07"]
[EventType "team-tourn"]
[EventCountry "ISR"]
[SourceTitle "playchess.com"]
[Source "ChessBase"]
[SourceQuality "1"]
[TimeControl "40/5400+30:1800+30"]

1. Nf3 {[%emt 0:00:05]} Nf6 {[%emt 0:00:05]} 2. g3 {[%emt 0:00:22]} d5 {[%emt 0:00:09]} 3. Bg2 {[%emt 0:01:03]} e6 {[%emt 0:00:15]} 4. O-O {[%emt 0:00:12]} Be7 {[%emt 0:00:03]} 5. c4 {[%emt 0:00:41]} O-O {[%emt 0:00:56]} 6. b3 {[%emt 0:00:27]} d4 {[%emt 0:01:42]} 7. Bb2 {[%emt 0:00:19]} c5 {[%emt 0:00:23]} 8. e3 {[%emt 0:00:02]} Nc6 {[%emt 0:00:27]} 9. exd4 {[%emt 0:02:10]} cxd4 {[%emt 0:01:16]} 10. Re1 {[%emt 0:00:08]} Re8 {[%emt 0:02:36]} 11. d3 {[%emt 0:05:38]} h6 {[%emt 0:02:02]} 12. Nbd2 {[%emt 0:04:05]} Bf8 {[%emt 0:08:16]} 13. a3 {[%emt 0:04:09]} a5 {[%emt 0:00:38]} 14. Ne5 {[%emt 0:01:21]} Ra6 {[%emt 0:04:28]} 15. Qe2 {[%emt 0:04:25]} Bc5 {[%emt 0:02:35]} 16. f4 {[%emt 0:09:51]} Qb6 {[%emt 0:07:57]} 17. g4 {[%emt 0:06:59]} Nd7 {[%emt 0:08:28]} 18. g5 {[%emt 0:02:44]} Ncxe5 {[%emt 0:07:54]} 19. fxe5 {[%emt 0:00:19]} hxg5 {[%emt 0:00:24]} 20. Qh5 {[%emt 0:00:44]} Qd8 {[%emt 0:15:39]} 21. Ne4 {[%emt 0:03:23]} g6 {[%emt 0:04:46]} 22. Qf3 {[%emt 0:07:12]} b6 {[%emt 0:08:30]} 23. Rf1 {[%emt 0:02:23]} Rf8 {[%emt 0:05:30]} 24. Qh3 {[%emt 0:00:55]} Kg7 {[%emt 0:01:20]} 25. Qg3 {[%emt 0:08:37]} Be7 {[%emt 0:06:25]} 26. Bxd4 {[%emt 0:00:31]} Nc5 {[%emt 0:00:09]} 27. Be3 {[%emt 0:03:27]} Nxe4 {[%emt 0:05:21]} 28. Bxe4 {[%emt 0:00:54]} Ra7 {[%emt 0:00:37]} 29. Qf2 {[%emt 0:00:30]} Ra6 {[%emt 0:01:34]} 30. Bc6 {[%emt 0:00:37]} Qxd3 {[%emt 0:01:38]} 31. Bb5 {[%emt 0:00:01]} Ra8 {[%emt 0:00:33]} 32. Bxb6 {[%emt 0:04:49]} Bb7 {[%emt 0:00:38]} 33. Qe3 {[%emt 0:00:57]} Qxe3+ {[%emt 0:00:53]} 34. Bxe3 {[%emt 0:00:01]} Rfd8 {[%emt 0:00:24]} 35. Rad1 {[%emt 0:00:38]} g4 {[%emt 0:00:38]} 36. a4 {[%emt 0:07:47]} Bf3 {[%emt 0:00:19]} 37. Rxd8 Rxd8 {[%emt 0:00:00]} 38. c5 {[%emt 0:01:34]} Rc8 {[%emt 0:00:26]} 39. Rc1 {[%emt 0:00:08]} Bd5 {[%emt 0:00:07]} 40. c6 {[%emt 0:05:32]} Ba3 {[%emt 0:01:48]} 41. Rc2 {[%emt 0:30:01]} Be4 {[%emt 0:30:50]} 42. Rc4 {[%emt 0:04:53]} Bd5 {[%emt 0:01:50]} 43. Rxg4 {[%emt 0:00:59]} Be7 {[%emt 0:00:00]} 44. Bb6 {[%emt 0:00:00]} Bd8 {[%emt 0:00:00]} 45. Bxd8 {[%emt 0:00:00]} Rxd8 {[%emt 0:00:00]} 46. Rg3 {[%emt 0:00:00]} Rc8 {[%emt 0:00:00]} 47. Rc3 {[%emt 0:00:00]} Rc7 {[%emt 0:00:00]} 48. Kf2 {[%emt 0:00:00]} f6 {[%emt 0:00:00]} 49. exf6+ {[%emt 0:00:00]} Kxf6 {[%emt 0:00:00]} 50. h4 {[%emt 0:00:00]} Ke5 {[%emt 0:00:00]} 51. Rg3 {[%emt 0:00:00]} Kf6 {[%emt 0:00:00]} 52. Re3 {[%emt 0:00:00]} e5 {[%emt 0:00:00]} 53. Rg3 {[%emt 0:00:00]} Rc8 {[%emt 0:00:00]} 54. Bd3 {[%emt 0:00:00]} e4 {[%emt 0:00:00]} 55. Rg5 {[%emt 0:00:00]} Bxc6 {[%emt 0:00:37]} 56. Be2 {[%emt 0:00:00]} Ra8 {[%emt 0:04:25]} 57. Ke3 {[%emt 0:00:00]} Bd7 {[%emt 0:00:37]} 58. Rc5 {[%emt 0:00:00]} Bf5 {[%emt 0:01:26]} 59. Kf4 {[%emt 0:00:00]} Rh8 {[%emt 0:01:39]} 60. Rc6+ {[%emt 0:00:00]} Ke7 {[%emt 0:00:14]} 61. h5 {[%emt 0:00:00]} Be6 {[%emt 0:00:40]} 62. hxg6 {[%emt 0:01:30]} Bxb3 {[%emt 0:00:22]} 63. Ke5 {[%emt 0:01:12]} Rg8 {[%emt 0:00:57]} 64. Bg4 {[%emt 0:00:42]} Re8 {[%emt 0:00:30]} 65. Rc7+ {[%emt 0:04:31]} Kf8+ {[%emt 0:00:27]} 66. Kf6 {[%emt 0:00:11]} e3 {[%emt 0:00:28]} 67. Rc3 {[%emt 0:01:57]} e2 {[%emt 0:00:35]} 68. g7+ {[%emt 0:00:36]} Kg8 {[%emt 0:00:20]} 69. Rh3 {[%emt 0:00:01]} 1-0

[Event "Israel National League 2024"]
[Site "Israel"]
[Date "2024.02.16"]
[Round "7.19"]
[White "Erigaisi Arjun"]
[Black "Galperin, Platon"]
[Result "1-0"]
[ECO "B47"]
[WhiteElo "2738"]
[BlackElo "2556"]
[Annotator "TA"]
[PlyCount "123"]
[EventDate "2024.01.07"]
[EventType "team-tourn"]
[EventCountry "ISR"]
[SourceTitle "playchess.com"]
[Source "ChessBase"]
[SourceQuality "1"]
[TimeControl "40/5400+30:1800+30"]

{[%evp 42,123,15,0,0,0,0,0,0,0,0,0,0,0,0,0,8,6,16,14,21,15,18,20,22,25,18,31,15,15,30,16,30,30,30,30,30,30,30,30,87,89,97,88,158,168,168,157,156,173,264,264,304,295,381,320,302,302,290,290,295,196,408,8,8,8,8,8,8,8,46,46,2505,1155,1881,1754,2275,2133,29979,29980,29980,29981,29981,29982]} 1. e4 {[%emt 0:00:13]} c5 {[%emt 0:00:11]} 2. Nf3 {[%emt 0:00:08]} e6 {[%emt 0:00:06]} 3. d4 {[%emt 0:00:15]} cxd4 {[%emt 0:00:07]} 4. Nxd4 {[%emt 0:00:05]} Nc6 {[%emt 0:00:05]} 5. Nc3 {[%emt 0:00:06]} Qc7 {[%emt 0:00:05]} 6. Be2 {[%emt 0:00:16]} a6 {[%emt 0:00:21]} 7. Nxc6 {[%emt 0:00:08] B47: Sicilian: Taimanov: 5 Nc3 Qc7 6 f4, 6 g3 and 6 Be2.} bxc6 {[%emt 0:05:59]} 8. Qd3 {[%emt 0:00:08]} d5 {[%emt 0:00:18]} 9. Qg3 {[%emt 0:00:08]} Qxg3 {[%emt 0:00:06]} 10. hxg3 {[%emt 0:00:06]} Nf6 {[%emt 0:00:04]} 11. g4 {[%emt 0:00:40]} Nxe4 {[%emt 0:00:45]} 12. Nxe4 {[%emt 0:00:09]} dxe4 {[%emt 0:00:03]} 13. Be3 {[%emt 0:07:12]} Bb7 {[%emt 0:16:15]} 14. O-O-O {[%emt 0:02:45]} c5 {[%emt 1:13:05]} 15. Rh5 {[%emt 0:11:11]} Rc8 $146 {[%emt 0:00:00]} ({Predecessor:} 15... g6 16. Rh4 Be7 17. Rh3 Rc8 18. Bc4 h5 19. Rdh1 h4 20. g3 Bf6 21. gxh4 Bd4 {½-½ Matsukevich,V (2321)-Khokhlov,I (2374) VW-Cup13 Gr55 email 2021}) 16. b3 {[%emt 0:00:57]} g6 {[%emt 0:00:00]} 17. Rh3 {[%emt 0:04:00]} Ke7 {[%emt 0:00:00]} 18. Rdh1 {[%emt 0:12:11]} Bg7 {[%emt 0:00:00]} 19. Rxh7 {[%emt 0:00:33]} Rxh7 {[%emt 0:00:00]} 20. Rxh7 {[%emt 0:00:07]} Bd4 {[%emt 0:00:00]} 21. Kd2 {[%emt 0:14:41]} Rd8 {[%emt 0:00:00]} 22. a4 {[%emt 0:06:01]} a5 {[%emt 0:00:00]} 23. Bb5 {[%emt 0:02:38]} Bxe3+ {[%emt 0:00:00]} 24. Kxe3 {[%emt 0:00:06]} g5 {[%emt 0:00:00]} 25. Rh6 {[%emt 0:04:29]} Ba8 {[%emt 0:02:17]} 26. f3 {[%emt 0:06:06]} exf3 {[%emt 0:00:38]} 27. gxf3 {[%emt 0:00:05]} Bb7 {[%emt 0:00:15]} 28. Bd3 {[%emt 0:02:12]} Bc6 {[%emt 0:01:14]} 29. Rh5 {[%emt 0:00:44]} Kf6 {[%emt 0:00:56]} 30. f4 {[%emt 0:00:05]} gxf4+ {[%emt 0:01:52]} 31. Kxf4 {[%emt 0:00:05]} Rd4+ {[%emt 0:00:42]} 32. Ke3 {[%emt 0:00:07]} Rd5 $1 {[%emt 0:00:31]} 33. Rh8 {[%emt 0:01:07]} Ke7 {[%emt 0:00:34]} 34. Bb5 {[%emt 0:02:50]} Re5+ {[%emt 0:00:22]} 35. Kd2 {[%emt 0:06:34]} Bf3 {[%emt 0:00:03]} 36. Rg8 {[%emt 0:00:06]} Kf6 {[%emt 0:00:27]} 37. Bd3 {[%emt 0:00:41]} Rg5 {[%emt 0:00:34]} 38. Rc8 {[%emt 0:00:04]} Rd5 {[%emt 0:01:04]} 39. Ke3 {[%emt 0:01:30]} Bxg4 {[%emt 0:00:10]} 40. Ra8 {[%emt 0:00:03]} Ke5 {[%emt 0:00:48]} (40... Bf5 $11 {keeps the balance.}) 41. Bc4 $1 $16 {[%emt 0:31:11]} Rd1 {[%emt 0:05:33]} 42. Rxa5 {[%emt 0:00:00]} f5 {[%emt 0:04:08]} (42... Re1+ $142 43. Kd2 Rh1) 43. Rxc5+ $16 {[%emt 0:00:00]} Kd6 {[%emt 0:00:04]} 44. Rc8 $1 {[%emt 0:00:00]} Ke5 {[%emt 0:00:06]} 45. Rf8 $1 {[%emt 0:00:00]} ({Resist} 45. Rc5+ Kd6 46. Rc8 Ke7 $16) 45... Rh1 {[%emt 0:09:19]} (45... Ra1 $142 46. Bb5 Bh3) 46. a5 $18 {[%emt 0:00:00]} Rh2 {[%emt 0:05:50] [#]} 47. Kd3 $1 {[%emt 0:00:00]} f4 {[%emt 0:02:39]} 48. Kc3 {[%emt 0:00:00]} Bf5 {[%emt 0:00:34]} 49. Bd3 {[%emt 0:00:00]} f3 {[%emt 0:00:07]} 50. a6 {[%emt 0:00:00]} Rh7 {[%emt 0:00:34]} 51. Kd2 {[%emt 0:00:00]} f2 $2 {[%emt 0:03:29]} (51... Bxd3 52. Kxd3 Ra7) 52. b4 $2 {[%emt 0:00:00]} (52. Bf1 $18) 52... Rh8 $1 $11 {[%emt 0:00:35]} 53. Rf7 {[%emt 0:05:03]} Rh7 $1 {[%emt 0:00:11]} 54. Rxf5+ {[%emt 0:06:23]} exf5 {[%emt 0:00:05]} 55. Ke3 {[%emt 0:00:05]} Rh1 {[%emt 0:04:07]} (55... Rh2 {is more complex.} 56. Bf1 Kd6 57. c4 Kc6) 56. Kxf2 {[%emt 0:04:05]} Kd6 $2 {[%emt 0:00:41][%mdl 8192] [#]} (56... Kd5 $14) 57. Bf1 $1 $18 {[%emt 0:02:00]} ({Weaker is} 57. Bxf5 Ra1 $16) 57... Rh7 {[%emt 0:00:21]} 58. Bg2 {[%emt 0:09:11]} Rc7 {[%emt 0:00:07]} 59. c4 {[%emt 0:00:00]} Rxc4 {[%emt 0:01:02]} 60. a7 {[%emt 0:00:00]} Rc2+ {[%emt 0:00:06]} 61. Kg1 {[%emt 0:00:00]} Rc1+ {[%emt 0:00:07]} 62. Kh2 {[%emt 0:00:00]} 1-0

[Event "Israel National League 2024"]
[Site "Israel"]
[Date "2024.02.16"]
[Round "7.20"]
[White "Sutovsky, Emil"]
[Black "Gelfand, Boris"]
[Result "1-0"]
[ECO "B30"]
[WhiteElo "2597"]
[BlackElo "2664"]
[Annotator "TA"]
[PlyCount "91"]
[EventDate "2024.01.07"]
[EventType "team-tourn"]
[EventCountry "ISR"]
[SourceTitle "playchess.com"]
[Source "ChessBase"]
[SourceQuality "1"]
[TimeControl "40/5400+30:1800+30"]

{[%evp 23,91,18,22,26,38,41,38,0,0,2,9,0,19,15,64,84,82,79,62,77,70,80,87,87,88,59,59,58,87,22,72,0,79,69,70,56,132,110,136,100,537,539,592,441,440,220,248,250,244,239,242,235,214,180,223,185,192,180,169,182,292,206,259,216,333,313,476,462,550,527]} 1. e4 {[%emt 0:00:03]} c5 {[%emt 0:00:02]} 2. Nf3 {[%emt 0:00:07]} Nc6 {[%emt 0:00:07]} 3. Bb5 {[%emt 0:00:04]} e6 {[%emt 0:00:03]} 4. O-O {[%emt 0:00:10]} Nge7 {[%emt 0:00:03]} 5. d4 {[%emt 0:00:06]} cxd4 {[%emt 0:00:04]} 6. Nxd4 {[%emt 0:00:04]} Ng6 {[%emt 0:00:03] B30: Sicilian: 2...Nc6 3 Bb5, lines without ...g6.} 7. Be3 {[%emt 0:00:13]} Be7 {[%emt 0:00:10]} 8. c3 {[%emt 0:00:05]} O-O {[%emt 0:00:09]} 9. Nd2 {[%emt 0:00:05]} a6 {[%emt 0:00:26]} 10. Be2 {[%emt 0:01:39]} Nxd4 {[%emt 0:04:11]} 11. cxd4 {[%emt 0:00:02]} b5 {[%emt 0:00:05]} 12. Bd3 {[%emt 0:00:08]} Bb7 {[%emt 0:00:27]} 13. g3 {[%emt 0:01:41]} f5 $146 {[%emt 0:14:29]} ({Predecessor:} 13... Bb4 14. Rc1 Ba5 15. a4 bxa4 16. Qxa4 Bxd2 17. Bxd2 Bc6 18. Qc2 Qb6 19. Qc5 Rfb8 {½-½ Atuan,J (2306)-Vieites,C (2397) ARG-ch35 email 2022}) 14. exf5 {[%emt 0:02:22]} exf5 {[%emt 0:00:46]} 15. Qb3+ {[%emt 0:13:02]} Kh8 {[%emt 0:02:58]} 16. f4 {[%emt 0:00:02]} Qb8 {[%emt 0:09:03]} 17. Qc2 {[%emt 0:07:17]} Bb4 {[%emt 0:02:07]} 18. Bxf5 {[%emt 0:02:38]} Bxd2 {[%emt 0:01:53]} (18... Qe8 $11 {is more appropriate.} 19. Rfe1 Qf7) 19. Bxd2 $14 {[%emt 0:00:04]} Qd6 {[%emt 0:00:03]} 20. Rae1 $1 {[%emt 0:09:39]} Qxd4+ {[%emt 0:07:53]} 21. Rf2 $1 {[%emt 0:00:15]} Rae8 {[%emt 0:00:34]} 22. Rxe8 {[%emt 0:04:33]} (22. Bxg6 $2 Rxe1+ 23. Bxe1 hxg6 $19) 22... Rxe8 {[%emt 0:01:02]} 23. Qd3 $1 {[%emt 0:00:05]} (23. Bxg6 Re2) 23... Qb6 {[%emt 0:14:54]} 24. Bxd7 {[%emt 0:11:05]} (24. Qxd7 $2 Re2 $19) 24... Rd8 $1 {[%emt 0:04:14]} 25. Qe2 $1 {[%emt 0:01:25]} Bd5 {[%emt 0:06:26]} 26. f5 {[%emt 0:22:10]} (26. Bg4 $16) 26... Nf8 {[%emt 0:09:34] [#]} (26... Rxd7 $11 27. Qe8+ (27. fxg6 Qxg6 28. Rf8+ Bg8 $11) 27... Bg8 28. Qxd7 Ne5) 27. f6 {[%emt 0:00:14]} (27. Be3 Qd6 28. Be6 Nxe6 29. fxe6 Bxe6 $17 (29... Bxa2 30. Bg5 $11)) (27. Be8 $1 $16 {Threatens to win with Bc3.} Ne6 28. Bh5) 27... gxf6 {[%emt 0:11:05]} (27... Nxd7 $6 28. fxg7+ Kg8 29. Qe7 $16) (27... Rxd7 $11 28. fxg7+ Kxg7 (28... Rxg7 29. Bc3 $16) 29. Qg4+ Qg6 30. Bc3+ Kg8 31. Rxf8+ Kxf8 32. Qxd7 Qe4) 28. Bg4 $16 {[%emt 0:05:10]} Ng6 {[%emt 0:01:46]} 29. Bc3 {[%emt 0:05:14]} Rf8 {[%emt 0:00:26]} ({Black should play} 29... Rd6 $14) 30. a3 {[%emt 0:03:23]} Kg8 {[%emt 0:01:34]} 31. Qd2 {[%emt 0:00:30]} Be4 $2 {[%emt 0:01:19][%mdl 8192]} (31... Bc4 $16 32. Qh6 Rf7) 32. Qd7 $18 {[%emt 0:01:46]} Qe3 {[%emt 0:04:53]} 33. Bd2 {[%emt 0:02:48]} Qd3 {[%emt 0:00:20]} 34. Qxd3 {[%emt 0:03:14]} (34. Be6+ $142 Kh8 35. Qxd3 Bxd3 36. Bb4) 34... Bxd3 $18 {[%emt 0:00:29]} 35. Bh6 {[%emt 0:00:01]} Re8 {[%emt 0:03:27]} 36. Rxf6 {[%emt 0:00:06]} Ne5 {[%emt 0:00:49]} 37. Be6+ {[%emt 0:01:12]} Kh8 {[%emt 0:00:01]} 38. b3 {[%emt 0:03:16]} Bg6 {[%emt 0:00:45]} 39. Bd5 {[%emt 0:01:16]} Ng4 {[%emt 0:00:28]} 40. Rf8+ {[%emt 0:00:22]} ({Not} 40. Rxa6 Re1+ (40... Nxh6 41. Rb6 $17) 41. Kg2 Nxh6 $17) 40... Rxf8 {[%emt 0:00:04]} 41. Bxf8 {[%emt 0:30:02]} Ne3 {[%emt 0:02:54]} (41... Nf6 $142) 42. Be6 {[%emt 0:00:00]} Nc2 {[%emt 0:03:18]} 43. Bh6 {[%emt 0:00:00]} a5 {[%emt 0:02:44]} (43... Be8 {keeps fighting.} 44. Bc1 Kg7 45. Bb2+ Kg6) 44. Kf2 {[%emt 0:00:00]} b4 {[%emt 0:02:07]} (44... Be4 $142 45. Bd2 b4) 45. a4 $18 {[%emt 0:00:00]} Bd3 {[%emt 0:05:21]} 46. Bd5 {[%emt 0:00:00]} 1-0